[Event "SixDays One Year GM-B 2023"]
[Site "Budapest"]
[Date "2023.09.19"]
[Round "2.3"]
[White "Varga, Zoltan"]
[Black "Palczert, Matyas"]
[Result "1-0"]
[ECO "B50"]
[WhiteElo "2363"]
[BlackElo "2340"]
[Annotator "ChessBase"]
[PlyCount "113"]
[EventDate "2023.09.18"]
[EventType "tourn"]
[EventCountry "HUN"]
[SourceTitle "playchess.com"]
[Source "ChessBase"]
[SourceQuality "1"]
[TimeControl "5400+30"]

1. e4 {[%emt 0:09:03]} c5 {[%emt 0:00:15]} 2. Nf3 {[%emt 0:00:07]} d6 {[%emt 0:00:17]} 3. c3 {[%emt 0:01:30]} Nf6 {[%emt 0:00:43]} 4. Bd3 {[%emt 0:00:19]} Nc6 {[%emt 0:02:27]} 5. O-O {[%emt 0:00:06]} Bg4 {[%emt 0:03:09]} 6. h3 {[%emt 0:00:17]} Bh5 {[%emt 0:00:41]} 7. Re1 {[%emt 0:00:13]} e6 {[%emt 0:01:42]} 8. Bf1 {[%emt 0:02:40]} Be7 {[%emt 0:07:31]} 9. d3 {[%emt 0:00:30]} O-O {[%emt 0:07:58]} 10. Nbd2 {[%emt 0:00:08]} d5 {[%emt 0:03:07]} 11. g4 {[%emt 0:00:27]} Bg6 {[%emt 0:01:40]} 12. Nh4 {[%emt 0:00:01]} Qc7 {[%emt 0:04:14]} 13. Nxg6 {[%emt 0:05:31]} fxg6 {[%emt 0:11:01]} 14. Nf3 {[%emt 0:13:17]} dxe4 {[%emt 0:09:12]} 15. dxe4 {[%emt 0:01:54]} Nd7 {[%emt 0:01:34]} 16. Bc4 {[%emt 0:02:01]} Kh8 {[%emt 0:03:07]} 17. Bxe6 {[%emt 0:05:13]} Nde5 {[%emt 0:01:08]} 18. Nh2 {[%emt 0:11:55]} Rad8 {[%emt 0:06:27]} 19. Bd5 {[%emt 0:00:37]} c4 {[%emt 0:01:33]} 20. f4 {[%emt 0:08:20]} Nd3 {[%emt 0:01:47]} 21. Rf1 {[%emt 0:00:00]} Nxf4 {[%emt 0:03:11]} 22. Bxf4 {[%emt 0:01:14]} Rxf4 {[%emt 0:00:14]} 23. Rxf4 {[%emt 0:00:01]} Qxf4 {[%emt 0:00:24]} 24. Qf3 {[%emt 0:00:02]} Qc7 {[%emt 0:03:20]} 25. Qe2 {[%emt 0:07:25]} Ne5 {[%emt 0:02:26]} 26. Rf1 {[%emt 0:00:02]} Nd3 {[%emt 0:01:46]} 27. Kh1 {[%emt 0:00:02]} Nf4 {[%emt 0:02:42]} 28. Qe3 {[%emt 0:01:56]} Bd6 {[%emt 0:04:42]} 29. Nf3 {[%emt 0:01:31]} Bc5 {[%emt 0:06:40]} 30. Qd2 {[%emt 0:01:03]} Nxd5 {[%emt 0:03:11]} 31. exd5 {[%emt 0:00:59]} Qf7 {[%emt 0:01:03]} 32. Kg2 {[%emt 0:00:20]} Qxd5 {[%emt 0:01:50]} 33. Rd1 {[%emt 0:02:54]} Qxd2+ {[%emt 0:00:37]} 34. Rxd2 {[%emt 0:00:01]} Re8 {[%emt 0:00:41]} 35. Ne5 {[%emt 0:02:21]} Kg8 {[%emt 0:01:50]} 36. Nxc4 {[%emt 0:00:19]} b5 {[%emt 0:00:41]} 37. Na5 {[%emt 0:07:23]} a6 {[%emt 0:01:56]} 38. Nb3 {[%emt 0:00:42]} Be7 {[%emt 0:01:24]} 39. Re2 {[%emt 0:01:05]} Kf7 {[%emt 0:00:09]} 40. Nd4 {[%emt 0:00:01]} Rc8 {[%emt 0:00:25]} 41. Nf3 {[%emt 0:00:56]} b4 {[%emt 0:01:03]} 42. Ne5+ {[%emt 0:01:44]} Kg8 {[%emt 0:00:18]} 43. Nd3 {[%emt 0:02:14]} Bf8 {[%emt 0:01:22]} 44. cxb4 {[%emt 0:00:40]} h5 {[%emt 0:00:29]} 45. a3 {[%emt 0:00:34]} h4 {[%emt 0:00:14]} 46. Ne5 {[%emt 0:02:19]} Re8 {[%emt 0:00:30]} 47. Kf1 {[%emt 0:00:06]} Re6 {[%emt 0:00:18]} 48. Nf3 {[%emt 0:00:03]} Rd6 {[%emt 0:00:40]} 49. Nxh4 {[%emt 0:00:07]} Rd3 {[%emt 0:00:11]} 50. Kg2 {[%emt 0:00:05]} Bd6 {[%emt 0:00:06]} 51. Nf3 {[%emt 0:00:39]} Rb3 {[%emt 0:00:04]} 52. Ng5 {[%emt 0:01:58]} Kf8 {[%emt 0:01:12]} 53. Ne4 {[%emt 0:04:24]} Be7 {[%emt 0:01:11]} 54. Nc5 {[%emt 0:01:34]} Bxc5 {[%emt 0:00:05]} 55. bxc5 {[%emt 0:00:00]} Rb5 {[%emt 0:00:07]} 56. b4 {[%emt 0:00:08]} a5 {[%emt 0:00:09]} 57. Re4 {[%emt 0:00:04]} 1-0

[Event "SixDays One Year GM-B 2023"]
[Site "Budapest"]
[Date "2023.09.19"]
[Round "2.4"]
[White "Yeganegi, Barad"]
[Black "Velikanov, Alexander"]
[Result "1/2-1/2"]
[ECO "A58"]
[WhiteElo "2261"]
[BlackElo "2327"]
[Annotator "ChessBase"]
[PlyCount "72"]
[EventDate "2023.09.18"]
[EventType "tourn"]
[EventCountry "HUN"]
[SourceTitle "playchess.com"]
[Source "ChessBase"]
[SourceQuality "1"]
[TimeControl "5400+30"]

1. d4 {[%emt 0:00:02]} Nf6 {[%emt 0:03:15]} 2. c4 {[%emt 0:00:05]} c5 {[%emt 0:00:04]} 3. d5 {[%emt 0:00:05]} b5 {[%emt 0:00:04]} 4. cxb5 {[%emt 0:00:07]} a6 {[%emt 0:00:03]} 5. bxa6 {[%emt 0:00:13]} e6 {[%emt 0:00:04]} 6. Nc3 {[%emt 0:06:37]} exd5 {[%emt 0:01:17]} 7. Nxd5 {[%emt 0:00:31]} Be7 {[%emt 0:00:04]} 8. e3 {[%emt 0:02:49]} Nxd5 {[%emt 0:00:11]} 9. Qxd5 {[%emt 0:00:36]} Ra7 {[%emt 0:00:01]} 10. Nf3 {[%emt 0:08:03]} O-O {[%emt 0:04:40]} 11. Be2 {[%emt 0:04:17]} Nxa6 {[%emt 0:00:09]} 12. O-O {[%emt 0:01:59]} Bb7 {[%emt 0:00:18]} 13. Qd1 {[%emt 0:03:13]} Qa8 {[%emt 0:00:10]} 14. Bd2 {[%emt 0:01:22]} Nc7 {[%emt 0:01:28]} 15. a4 {[%emt 0:09:11]} Rb8 {[%emt 0:08:37]} 16. b3 {[%emt 0:07:27]} Be4 {[%emt 0:09:00]} 17. Rc1 {[%emt 0:10:53]} Rb6 {[%emt 0:21:53]} 18. Ne1 {[%emt 0:06:32]} Qb7 {[%emt 0:12:36]} 19. Bf3 {[%emt 0:03:49]} Bxf3 {[%emt 0:02:24]} 20. Qxf3 {[%emt 0:00:22]} Rxb3 {[%emt 0:03:37]} 21. Qxb7 {[%emt 0:01:14]} Rbxb7 {[%emt 0:01:27]} 22. a5 {[%emt 0:01:30]} f6 {[%emt 0:03:27]} 23. Nd3 {[%emt 0:09:46]} d6 {[%emt 0:00:02]} 24. Rb1 {[%emt 0:01:11]} Kf7 {[%emt 0:00:01]} 25. g3 {[%emt 0:01:37]} Ke8 {[%emt 0:00:38]} 26. e4 {[%emt 0:01:10]} Kd7 {[%emt 0:00:14]} 27. Nb2 {[%emt 0:01:22]} Kc6 {[%emt 0:03:36]} 28. Nc4 {[%emt 0:00:16]} Rxb1 {[%emt 0:02:05]} 29. Rxb1 {[%emt 0:00:05]} Nb5 {[%emt 0:00:14]} 30. g4 {[%emt 0:05:30]} Bd8 {[%emt 0:01:55]} 31. f3 {[%emt 0:01:33]} d5 {[%emt 0:08:46]} 32. exd5+ {[%emt 0:00:47]} Kxd5 {[%emt 0:00:02]} 33. Rxb5 {[%emt 0:00:33]} Kxc4 {[%emt 0:00:03]} 34. Rxc5+ {[%emt 0:00:07]} Kxc5 {[%emt 0:00:05]} 35. Be3+ {[%emt 0:00:04]} Kd5 {[%emt 0:00:07]} 36. Bxa7 {[%emt 0:00:04]} Bxa5 {[%emt 0:00:04]} 1/2-1/2

[Event "SixDays One Year GM-B 2023"]
[Site "Budapest"]
[Date "2023.09.19"]
[Round "2.5"]
[White "Xiao, Tong"]
[Black "Lee, Jun Hyeok"]
[Result "1/2-1/2"]
[ECO "B52"]
[WhiteElo "2452"]
[BlackElo "2378"]
[Annotator "ChessBase"]
[PlyCount "96"]
[EventDate "2023.09.18"]
[EventType "tourn"]
[EventCountry "HUN"]
[SourceTitle "playchess.com"]
[Source "ChessBase"]
[SourceQuality "1"]
[TimeControl "5400+30"]

1. e4 {[%emt 0:00:02]} c5 {[%emt 0:02:06]} 2. Nf3 {[%emt 0:00:12]} d6 {[%emt 0:00:03]} 3. Bb5+ {[%emt 0:00:16]} Bd7 {[%emt 0:00:40]} 4. Bxd7+ {[%emt 0:00:14]} Qxd7 {[%emt 0:00:11]} 5. O-O {[%emt 0:00:17]} Nf6 {[%emt 0:00:42]} 6. Re1 {[%emt 0:00:24]} Nc6 {[%emt 0:00:26]} 7. c3 {[%emt 0:00:51]} e6 {[%emt 0:00:18]} 8. d4 {[%emt 0:00:20]} cxd4 {[%emt 0:00:25]} 9. cxd4 {[%emt 0:00:02]} d5 {[%emt 0:00:04]} 10. e5 {[%emt 0:00:47]} Ne4 {[%emt 0:00:13]} 11. a3 {[%emt 0:01:34]} Be7 {[%emt 0:00:57]} 12. Nbd2 {[%emt 0:00:28]} Nxd2 {[%emt 0:00:07]} 13. Bxd2 {[%emt 0:00:05]} O-O {[%emt 0:00:48]} 14. Rc1 {[%emt 0:01:09]} Rfc8 {[%emt 0:03:49]} 15. Rc3 {[%emt 0:00:37]} Bf8 {[%emt 0:23:09]} 16. Rd3 {[%emt 0:07:43]} Ne7 {[%emt 0:01:50]} 17. h4 {[%emt 0:07:51]} Rc4 {[%emt 0:01:39]} 18. h5 {[%emt 0:03:25]} h6 {[%emt 0:01:24]} 19. g4 a5 {[%emt 0:05:39]} 20. Nh4 {[%emt 0:15:28]} Nc6 {[%emt 0:05:53]} 21. Be3 {[%emt 0:08:04]} a4 {[%emt 0:01:14]} 22. f4 {[%emt 0:01:01]} Qd8 {[%emt 0:08:50]} 23. Nf3 {[%emt 0:04:29]} Qb6 {[%emt 0:03:00]} 24. Qb1 {[%emt 0:02:58]} Na5 {[%emt 0:03:20]} 25. Rd2 {[%emt 0:08:11]} Rc7 {[%emt 0:12:35]} 26. Rde2 {[%emt 0:10:05]} Rac8 {[%emt 0:01:23]} 27. g5 {[%emt 0:00:34]} Qb3 {[%emt 0:01:36]} 28. gxh6 {[%emt 0:09:30]} gxh6 {[%emt 0:00:32]} 29. Rg2+ {[%emt 0:01:04]} Kh8 {[%emt 0:00:13]} 30. Ree2 {[%emt 0:01:33]} Nc4 {[%emt 0:02:05]} 31. Qe1 {[%emt 0:00:17]} Nxe3 {[%emt 0:01:38]} 32. Rxe3 {[%emt 0:00:07]} Rc1 {[%emt 0:00:40]} 33. Rxb3 {[%emt 0:01:08]} axb3 {[%emt 0:00:16]} 34. Rd2 {[%emt 0:10:05]} Rxe1+ {[%emt 0:00:24]} 35. Nxe1 {[%emt 0:00:02]} Be7 {[%emt 0:01:15]} 36. Kf2 {[%emt 0:01:25]} Rc1 {[%emt 0:08:19]} 37. Ke2 {[%emt 0:00:08]} Bd8 {[%emt 0:01:19]} 38. Rd1 {[%emt 0:01:03]} Rc4 {[%emt 0:01:22]} 39. Rd3 {[%emt 0:00:15]} Ba5 {[%emt 0:01:03]} 40. Rxb3 {[%emt 0:03:10]} Rxd4 {[%emt 0:01:02]} 41. Nd3 {[%emt 0:00:13]} Re4+ {[%emt 0:01:20]} 42. Kd1 {[%emt 0:00:07]} Rd4 {[%emt 0:01:02]} 43. Ke2 {[%emt 0:03:33]} Re4+ {[%emt 0:00:13]} 44. Kd1 {[%emt 0:00:05]} Rd4 {[%emt 0:00:03]} 45. Kc2 {[%emt 0:00:26]} Rc4+ {[%emt 0:00:28]} 46. Kb1 {[%emt 0:00:02]} Rd4 {[%emt 0:00:32]} 47. Kc2 {[%emt 0:01:48]} Rc4+ {[%emt 0:00:03]} 48. Kb1 Rd4 1/2-1/2

[Event "SixDays One Year GM-B 2023"]
[Site "Budapest"]
[Date "2023.09.19"]
[Round "3.1"]
[White "Lee, Jun Hyeok"]
[Black "Grover, Sahaj"]
[Result "0-1"]
[ECO "C79"]
[WhiteElo "2378"]
[BlackElo "2488"]
[Annotator "ChessBase"]
[PlyCount "115"]
[EventDate "2023.09.18"]
[EventType "tourn"]
[EventCountry "HUN"]
[SourceTitle "playchess.com"]
[Source "ChessBase"]
[SourceQuality "1"]
[TimeControl "5400+30"]

1. e4 {[%emt 0:00:02]} e5 {[%emt 0:08:38]} 2. Nf3 {[%emt 0:00:09]} Nc6 {[%emt 0:00:44]} 3. Bb5 {[%emt 0:00:32]} a6 {[%emt 0:00:08]} 4. Ba4 {[%emt 0:00:05]} Nf6 {[%emt 0:00:25]} 5. O-O {[%emt 0:00:15]} d6 {[%emt 0:01:03]} 6. Re1 {[%emt 0:02:03]} Bd7 {[%emt 0:19:22]} 7. c3 {[%emt 0:00:12]} g6 {[%emt 0:00:05]} 8. d4 {[%emt 0:00:03]} Bg7 {[%emt 0:00:36]} 9. h3 {[%emt 0:00:29]} O-O {[%emt 0:00:06]} 10. Bc2 {[%emt 0:00:39]} a5 {[%emt 0:00:29]} 11. Nbd2 {[%emt 0:21:08]} a4 {[%emt 0:00:45]} 12. a3 {[%emt 0:04:44]} b5 {[%emt 0:01:04]} 13. Nf1 {[%emt 0:01:44]} Re8 {[%emt 0:00:31]} 14. Bg5 {[%emt 0:08:47]} h6 {[%emt 0:01:24]} 15. Bxf6 {[%emt 0:00:49]} Qxf6 {[%emt 0:02:24]} 16. Ne3 {[%emt 0:00:22]} exd4 {[%emt 0:02:15]} 17. Nd5 {[%emt 0:00:23]} Qd8 {[%emt 0:00:05]} 18. cxd4 {[%emt 0:00:56]} Na5 {[%emt 0:00:11]} 19. Qe2 {[%emt 0:01:47]} c6 {[%emt 0:10:38]} 20. Ne3 {[%emt 0:07:05]} c5 {[%emt 0:09:18]} 21. Rad1 {[%emt 0:01:19]} Qc8 {[%emt 0:01:23]} 22. Bb1 {[%emt 0:13:42]} Qb7 {[%emt 0:02:45]} 23. Ba2 {[%emt 0:00:58]} Nb3 {[%emt 0:01:59]} 24. Bxb3 {[%emt 0:11:30]} axb3 {[%emt 0:00:11]} 25. Nf1 {[%emt 0:02:02]} c4 {[%emt 0:05:24]} 26. Ng3 {[%emt 0:00:41]} d5 {[%emt 0:00:26]} 27. Ne5 {[%emt 0:03:14]} Be6 {[%emt 0:01:47]} 28. f4 {[%emt 0:03:36]} dxe4 {[%emt 0:00:32]} 29. Nxe4 {[%emt 0:00:20]} Rad8 {[%emt 0:00:48]} 30. Qf2 {[%emt 0:04:08]} Bf5 {[%emt 0:02:09]} 31. Nc3 {[%emt 0:00:27]} Qb6 {[%emt 0:02:10]} 32. d5 {[%emt 0:01:44]} Qb7 {[%emt 0:09:40]} 33. Qc5 {[%emt 0:00:42]} Bc2 {[%emt 0:03:08]} 34. Rd2 {[%emt 0:00:57]} f6 {[%emt 0:01:44]} 35. Nf3 {[%emt 0:00:06]} Bd3 {[%emt 0:00:05]} 36. Rxe8+ {[%emt 0:03:03]} Rxe8 {[%emt 0:00:01]} 37. Nd4 {[%emt 0:00:35]} Rc8 {[%emt 0:03:01]} 38. Nc6 {[%emt 0:01:15]} Bf8 {[%emt 0:00:06]} 39. Qe3 {[%emt 0:01:56]} Qd7 {[%emt 0:01:00]} 40. Rxd3 {[%emt 0:01:52]} cxd3 {[%emt 0:00:07]} 41. Qxd3 {[%emt 0:00:03]} Kh7 {[%emt 0:02:11]} 42. Qxb5 {[%emt 0:01:12]} Re8 {[%emt 0:00:41]} 43. Nd4 {[%emt 0:01:39]} Qxb5 {[%emt 0:01:08]} 44. Ndxb5 {[%emt 0:00:01]} Re1+ {[%emt 0:00:08]} 45. Kf2 {[%emt 0:02:47]} Rc1 {[%emt 0:00:06]} 46. Ke3 {[%emt 0:00:24]} Rc2 {[%emt 0:00:16]} 47. g4 {[%emt 0:00:56]} Rxb2 {[%emt 0:00:33]} 48. d6 {[%emt 0:00:17]} Rc2 {[%emt 0:00:33]} 49. Kd3 {[%emt 0:00:31]} Rc1 {[%emt 0:00:06]} 50. d7 {[%emt 0:00:43]} Be7 {[%emt 0:00:06]} 51. a4 {[%emt 0:00:32]} b2 {[%emt 0:00:19]} 52. Na3 {[%emt 0:00:19]} Bd8 {[%emt 0:00:41]} 53. Nab1 {[%emt 0:00:43]} Ba5 {[%emt 0:00:06]} 54. Kc4 {[%emt 0:00:29]} Bxc3 {[%emt 0:00:45]} 55. Nxc3 {[%emt 0:00:06]} b1=Q {[%emt 0:00:06]} 56. d8=Q {[%emt 0:00:06]} Qa2+ {[%emt 0:00:06]} 57. Kd3 {[%emt 0:00:41]} Qc2+ {[%emt 0:00:05]} 58. Kd4 0-1

[Event "SixDays One Year GM-B 2023"]
[Site "Budapest"]
[Date "2023.09.19"]
[Round "3.2"]
[White "Velikanov, Alexander"]
[Black "Xiao, Tong"]
[Result "1/2-1/2"]
[ECO "B22"]
[WhiteElo "2327"]
[BlackElo "2452"]
[Annotator "ChessBase"]
[PlyCount "29"]
[EventDate "2023.09.18"]
[EventType "tourn"]
[EventCountry "HUN"]
[SourceTitle "playchess.com"]
[Source "ChessBase"]
[SourceQuality "1"]
[TimeControl "5400+30"]

1. e4 {[%emt 0:05:15]} c5 {[%emt 0:00:03]} 2. c3 {[%emt 0:00:05]} Nf6 {[%emt 0:00:17]} 3. e5 {[%emt 0:00:04]} Nd5 {[%emt 0:00:05]} 4. Nf3 {[%emt 0:00:03]} Nc6 {[%emt 0:00:31]} 5. Bc4 {[%emt 0:00:05]} Nb6 {[%emt 0:00:45]} 6. Bb3 {[%emt 0:00:01]} d5 {[%emt 0:00:32]} 7. exd6 {[%emt 0:00:06]} Qxd6 {[%emt 0:09:28]} 8. O-O {[%emt 0:00:03]} Bf5 {[%emt 0:00:34]} 9. d4 {[%emt 0:03:56]} cxd4 {[%emt 0:01:17]} 10. Nxd4 {[%emt 0:00:11]} Nxd4 {[%emt 0:06:00]} 11. cxd4 {[%emt 0:00:02]} e6 {[%emt 0:01:35]} 12. Nc3 {[%emt 0:00:14]} Be7 {[%emt 0:00:42]} 13. Qf3 {[%emt 0:00:06]} Qd7 {[%emt 0:02:03]} 14. Rd1 {[%emt 0:01:54]} O-O {[%emt 0:03:17]} 15. h3 1/2-1/2

[Event "SixDays One Year GM-B 2023"]
[Site "Budapest"]
[Date "2023.09.19"]
[Round "3.3"]
[White "Palczert, Matyas"]
[Black "Yeganegi, Barad"]
[Result "1-0"]
[ECO "C58"]
[WhiteElo "2340"]
[BlackElo "2261"]
[Annotator "ChessBase"]
[PlyCount "97"]
[EventDate "2023.09.18"]
[EventType "tourn"]
[EventCountry "HUN"]
[SourceTitle "playchess.com"]
[Source "ChessBase"]
[SourceQuality "1"]
[TimeControl "5400+30"]

1. e4 {[%emt 0:02:10]} e5 {[%emt 0:00:08]} 2. Nf3 {[%emt 0:00:09]} Nc6 {[%emt 0:00:06]} 3. Bc4 {[%emt 0:00:14]} Nf6 {[%emt 0:00:05]} 4. Ng5 {[%emt 0:00:26]} d5 {[%emt 0:00:05]} 5. exd5 {[%emt 0:00:09]} Na5 {[%emt 0:00:05]} 6. Bb5+ {[%emt 0:00:07]} c6 {[%emt 0:00:04]} 7. dxc6 {[%emt 0:00:12]} bxc6 {[%emt 0:00:04]} 8. Bd3 {[%emt 0:00:18]} Ng4 {[%emt 0:04:39]} 9. Ne4 {[%emt 0:01:50]} f5 {[%emt 0:00:30]} 10. Be2 {[%emt 0:00:26]} h5 {[%emt 0:00:40]} 11. h3 {[%emt 0:00:50]} fxe4 {[%emt 0:00:10]} 12. hxg4 {[%emt 0:00:09]} Bc5 {[%emt 0:00:32]} 13. Nc3 {[%emt 0:01:45]} Qd4 {[%emt 0:01:06]} 14. O-O {[%emt 0:00:49]} O-O {[%emt 0:00:12]} 15. Qe1 {[%emt 0:00:28]} hxg4 {[%emt 0:00:28]} 16. d3 {[%emt 0:01:44]} exd3 {[%emt 0:00:11]} 17. Bxd3 {[%emt 0:00:17]} Rxf2 {[%emt 0:00:46]} 18. Qxf2 {[%emt 0:00:43]} Qxf2+ {[%emt 0:00:05]} 19. Rxf2 {[%emt 0:00:12]} g3 {[%emt 0:00:15]} 20. Ne4 {[%emt 0:00:40]} gxf2+ {[%emt 0:00:07]} 21. Kf1 {[%emt 0:00:16]} Bb6 {[%emt 0:03:44]} 22. b4 {[%emt 0:00:25]} Nb7 {[%emt 0:00:17]} 23. a4 {[%emt 0:13:15]} Bf5 {[%emt 0:11:08]} 24. a5 {[%emt 0:07:35]} Bd4 {[%emt 0:07:15]} 25. Ra3 {[%emt 0:05:23]} Bxe4 {[%emt 0:02:07]} 26. Bxe4 {[%emt 0:00:15]} Nd6 {[%emt 0:00:09]} 27. Bxc6 {[%emt 0:02:11]} Rc8 {[%emt 0:01:04]} 28. b5 {[%emt 0:03:11]} e4 {[%emt 0:08:06]} 29. Rh3 {[%emt 0:04:17]} Kf7 {[%emt 0:04:56]} 30. c3 {[%emt 0:05:10]} Bc5 {[%emt 0:07:26]} 31. Rh5 {[%emt 0:01:15]} g5 {[%emt 0:08:19]} 32. Rxg5 {[%emt 0:03:46]} Rh8 {[%emt 0:00:43]} 33. Rxc5 {[%emt 0:00:12]} Rh1+ {[%emt 0:00:03]} 34. Kxf2 {[%emt 0:00:08]} Rxc1 {[%emt 0:00:20]} 35. a6 {[%emt 0:03:43]} Ke6 {[%emt 0:01:35]} 36. g4 {[%emt 0:00:30]} Ra1 {[%emt 0:01:56]} 37. g5 {[%emt 0:02:08]} Rb1 {[%emt 0:00:45]} 38. Bd5+ {[%emt 0:01:12]} Kd7 {[%emt 0:01:38]} 39. g6 {[%emt 0:01:19]} e3+ {[%emt 0:01:04]} 40. Kxe3 {[%emt 0:00:26]} Rg1 {[%emt 0:01:46]} 41. Bf7 {[%emt 0:00:52]} Re1+ {[%emt 0:02:07]} 42. Kd2 {[%emt 0:01:10]} Rg1 {[%emt 0:00:30]} 43. Rd5 {[%emt 0:00:17]} Ke7 {[%emt 0:00:30]} 44. Rxd6 {[%emt 0:00:36]} Kxd6 {[%emt 0:00:30]} 45. b6 {[%emt 0:00:09]} Rg2+ {[%emt 0:01:05]} 46. Ke3 {[%emt 0:00:18]} Rg3+ {[%emt 0:00:09]} 47. Kf2 {[%emt 0:00:29]} Rxc3 {[%emt 0:00:07]} 48. g7 {[%emt 0:00:20]} Rc8 {[%emt 0:00:04]} 49. g8=Q {[%emt 0:00:20]} 1-0

[Event "SixDays One Year GM-B 2023"]
[Site "Budapest"]
[Date "2023.09.19"]
[Round "3.4"]
[White "Siddharth, Jagadeesh"]
[Black "Varga, Zoltan"]
[Result "1-0"]
[ECO "B01"]
[WhiteElo "2391"]
[BlackElo "2363"]
[Annotator "ChessBase"]
[PlyCount "47"]
[EventDate "2023.09.18"]
[EventType "tourn"]
[EventCountry "HUN"]
[SourceTitle "playchess.com"]
[Source "ChessBase"]
[SourceQuality "1"]
[TimeControl "5400+30"]

1. e4 {[%emt 0:03:42]} d5 {[%emt 0:13:18]} 2. exd5 {[%emt 0:00:11]} Qxd5 {[%emt 0:00:04]} 3. Nc3 {[%emt 0:00:11]} Qd6 {[%emt 0:00:24]} 4. d4 {[%emt 0:00:48]} Nf6 {[%emt 0:00:25]} 5. Nf3 {[%emt 0:00:38]} Bg4 {[%emt 0:00:07]} 6. h3 {[%emt 0:00:44]} Bh5 {[%emt 0:00:30]} 7. g4 {[%emt 0:00:23]} Bg6 {[%emt 0:00:04]} 8. Ne5 {[%emt 0:00:39]} Nbd7 {[%emt 0:00:06]} 9. Nxg6 {[%emt 0:00:41]} hxg6 {[%emt 0:00:29]} 10. Bg2 {[%emt 0:00:09]} c6 {[%emt 0:01:09]} 11. g5 {[%emt 0:01:40]} Nd5 {[%emt 0:05:35]} 12. O-O {[%emt 0:00:21]} Nf4 {[%emt 0:04:12]} 13. Ne4 {[%emt 0:00:07]} Qc7 {[%emt 0:00:03]} 14. Bxf4 {[%emt 0:00:10]} Qxf4 {[%emt 0:00:03]} 15. d5 {[%emt 0:00:09]} c5 {[%emt 0:08:17]} 16. c4 {[%emt 0:05:39]} f5 {[%emt 0:18:38]} 17. gxf6 {[%emt 0:02:20]} exf6 {[%emt 0:00:04]} 18. Re1 {[%emt 0:08:28]} O-O-O {[%emt 0:06:41]} 19. d6 {[%emt 0:01:06]} f5 {[%emt 0:08:05]} 20. Qd5 {[%emt 0:01:25]} Qe5 {[%emt 0:00:14]} 21. Qxe5 {[%emt 0:00:20]} Nxe5 {[%emt 0:00:02]} 22. Nxc5 {[%emt 0:00:08]} Nc6 {[%emt 0:01:13]} 23. d7+ {[%emt 0:00:59]} Kb8 {[%emt 0:00:06]} 24. Nxb7 {[%emt 0:00:27]} 1-0

[Event "SixDays One Year GM-B 2023"]
[Site "Budapest"]
[Date "2023.09.19"]
[Round "3.5"]
[White "Fodor, Tamas Jr."]
[Black "Baum, Jonasz"]
[Result "1/2-1/2"]
[ECO "E46"]
[WhiteElo "2486"]
[BlackElo "2429"]
[Annotator "ChessBase"]
[PlyCount "72"]
[EventDate "2023.09.18"]
[EventType "tourn"]
[EventCountry "HUN"]
[SourceTitle "playchess.com"]
[Source "ChessBase"]
[SourceQuality "1"]
[TimeControl "5400+30"]

1. d4 {[%emt 0:00:07]} Nf6 {[%emt 0:00:04]} 2. c4 {[%emt 0:00:05]} e6 {[%emt 0:00:03]} 3. Nc3 {[%emt 0:00:05]} Bb4 {[%emt 0:00:10]} 4. e3 {[%emt 0:00:06]} O-O {[%emt 0:00:04]} 5. Bd2 {[%emt 0:00:04]} d5 {[%emt 0:00:17]} 6. Nf3 {[%emt 0:00:08]} b6 {[%emt 0:00:35]} 7. cxd5 {[%emt 0:00:15]} exd5 {[%emt 0:00:04]} 8. Rc1 {[%emt 0:00:06]} c5 {[%emt 0:01:44]} 9. a3 {[%emt 0:06:46]} Bxc3 {[%emt 0:00:04]} 10. Bxc3 {[%emt 0:00:09]} c4 {[%emt 0:00:39]} 11. Be2 {[%emt 0:02:56]} b5 {[%emt 0:03:21]} 12. O-O {[%emt 0:00:37]} Bg4 {[%emt 0:02:40]} 13. h3 {[%emt 0:12:17]} Bxf3 {[%emt 0:00:50]} 14. Bxf3 {[%emt 0:00:21]} Nc6 {[%emt 0:01:19]} 15. b3 {[%emt 0:00:54]} Rb8 {[%emt 0:04:49]} 16. bxc4 {[%emt 0:01:06]} bxc4 {[%emt 0:00:08]} 17. Qa4 {[%emt 0:00:38]} Qd7 {[%emt 0:00:34]} 18. Kh1 {[%emt 0:07:10]} Rb6 {[%emt 0:02:31]} 19. Rfd1 {[%emt 0:06:42]} Qf5 {[%emt 0:07:26]} 20. Be1 {[%emt 0:12:24]} Rfb8 {[%emt 0:10:25]} 21. Kg1 {[%emt 0:05:28]} h5 {[%emt 0:02:03]} 22. Be2 {[%emt 0:04:13]} Qe6 {[%emt 0:06:25]} 23. Bf1 {[%emt 0:07:57]} R8b7 {[%emt 0:07:36]} 24. Kh1 {[%emt 0:06:58]} Rb8 {[%emt 0:08:57]} 25. Kg1 {[%emt 0:01:12]} g6 {[%emt 0:05:15]} 26. Bc3 {[%emt 0:01:22]} Rb3 {[%emt 0:02:19]} 27. Be1 {[%emt 0:03:50]} Qd6 {[%emt 0:03:52]} 28. Ra1 {[%emt 0:00:11]} R8b6 {[%emt 0:05:23]} 29. Rdc1 {[%emt 0:00:58]} Ne4 {[%emt 0:01:55]} 30. f3 {[%emt 0:01:36]} Ng3 {[%emt 0:01:32]} 31. Rc3 {[%emt 0:04:40]} Nxf1 {[%emt 0:05:23]} 32. Kxf1 {[%emt 0:00:04]} Qh2 {[%emt 0:02:21]} 33. Rxb3 {[%emt 0:00:10]} Rxb3 {[%emt 0:00:55]} 34. Rd1 {[%emt 0:00:57]} Qd6 {[%emt 0:06:51]} 35. e4 {[%emt 0:00:06]} Rxa3 {[%emt 0:00:49]} 36. Qb5 {[%emt 0:00:20]} Qf6 {[%emt 0:06:56]} 1/2-1/2